fUST/lending_fUST_20240918
["ID","MTS","AMOUNT","RATE_DAILY","PERIOD"]
[338457198,1726654251438,-500.0,0.00019452,2]
[338457199,1726654251448,-513.63778498,0.00019452,2]
[338457200,1726654251459,-779.81,0.00019452,2]
[338457201,1726654251470,-500.0,0.00019452,2]
[338457202,1726654251481,-1052.81,0.00019452,2]
[338457203,1726654251490,-715.56,0.00019452,2]
[338457204,1726654251500,-500.0,0.00019452,2]
[338457205,1726654251509,-500.0,0.00019452,2]
[338457206,1726654251519,-570.15,0.00019452,2]
[338457207,1726654251529,-500.0,0.00019452,2]
[338457208,1726654251538,-151.0,0.00019452,2]
[338457209,1726654251548,-258.672467,0.00019452,2]
[338457210,1726654251558,-1004.64,0.00019452,2]
[338457211,1726654251570,-824.52,0.00019452,2]
[338457212,1726654251579,-500.0,0.00019452,2]
[338457213,1726654251590,-500.0,0.00019452,2]
[338457214,1726654251600,-708.37,0.00019452,2]
[338457215,1726654251610,-500.0,0.00019452,2]
[338457216,1726654251620,-500.0,0.00019452,2]
[338457217,1726654251631,-1364.54,0.00019452,2]
[338457218,1726654251641,-151.0,0.00019452,2]
[338457219,1726654251652,-151.0,0.00019452,2]
[338457220,1726654251662,-500.0,0.00019452,2]
[338457221,1726654251673,-155.996601,0.00019452,2]
[338457222,1726654251691,-500.0,0.00019452,2]
[338457223,1726654251702,-693.59,0.00019452,2]
[338457224,1726654251715,-500.0,0.00019452,2]
[338457225,1726654251728,-643.35,0.00019452,2]
[338457226,1726654251738,-874.2,0.00019452,2]
[338457227,1726654251903,-700.07,0.00019452,2]
[338457228,1726654251915,-500.0,0.00019452,2]
[338457229,1726654251925,-1137.54,0.00019452,2]
[338457230,1726654251939,-1026.61,0.00019452,2]
[338457231,1726654251948,-2783.32,0.00019452,2]
[338457232,1726654251958,-504.96,0.00019452,2]
[338457233,1726654251968,-500.0,0.00019452,2]
[338457234,1726654251978,-500.0,0.00019452,2]
[338457235,1726654251989,-500.0,0.00019452,2]
[338457236,1726654251999,-444.57796387,0.00019452,2]
[338457237,1726654252010,-1337.97,0.00019452,2]
[338457238,1726654252020,-656.67,0.00019452,2]
[338457239,1726654252030,-500.0,0.00019452,2]
[338457240,1726654252041,-668.73,0.00019452,2]
[338457241,1726654252051,-536.47,0.00019452,2]
[338457242,1726654252061,-500.0,0.00019452,2]
[338457243,1726654252071,-500.0,0.00019452,2]
[338457244,1726654252082,-500.0,0.00019452,2]
[338457245,1726654252092,-2903.2,0.00019452,2]
[338457246,1726654252102,-1167.42,0.00019452,2]
[338457247,1726654252113,-500.0,0.00019452,2]
[338457248,1726654252124,-552.23,0.00019452,2]
[338457249,1726654252134,-594.25,0.00019452,2]
[338457250,1726654252144,-500.0,0.00019452,2]
[338457251,1726654252156,-617.14,0.00019452,2]
[338457252,1726654252166,-151.0,0.00019452,2]
[338457253,1726654252176,-151.0,0.00019452,2]
[338457254,1726654252185,-151.0,0.00019452,2]
[338457255,1726654252196,-500.0,0.00019452,2]
[338457256,1726654252206,-500.0,0.00019452,2]
[338457257,1726654252217,-241.362484,0.00019452,2]
[338457258,1726654252226,-500.0,0.00019452,2]
[338457259,1726654252236,-759.07,0.00019452,2]
[338457260,1726654252247,-1174.75,0.00019452,2]
[338457261,1726654252259,-2042.32,0.00019452,2]
[338457262,1726654252270,-500.0,0.00019452,2]
[338457263,1726654252279,-500.0,0.00019452,2]
[338457264,1726654252289,-1138.83,0.00019452,2]
[338457265,1726654252299,-1489.98,0.00019452,2]
[338457266,1726654252308,-838.86,0.00019452,2]
[338457267,1726654252318,-500.0,0.00019452,2]
[338457268,1726654252328,-247.6,0.00019452,2]
[338457269,1726654252337,-500.0,0.00019452,2]
[338457270,1726654252349,-731.03,0.00019452,2]
[338457271,1726654252359,-500.0,0.00019452,2]
[338457272,1726654252370,-938.43,0.00019452,2]
[338457273,1726654252381,-500.0,0.00019452,2]
[338457274,1726654252392,-500.0,0.00019452,2]
[338457275,1726654252403,-1159.14,0.00019452,2]
[338457276,1726654252413,-1153.87,0.00019452,2]
[338457277,1726654252423,-500.0,0.00019452,2]
[338457278,1726654252433,-601.86,0.00019452,2]
[338457279,1726654252444,-541.99,0.00019452,2]
[338457280,1726654252454,-530.09,0.00019452,2]
[338457281,1726654252466,-1016.51,0.00019452,2]
[338457282,1726654252477,-500.0,0.00019452,2]
[338457283,1726654252488,-1420.41,0.00019452,2]
[338457284,1726654252498,-500.0,0.00019452,2]
[338457285,1726654252510,-1581.28,0.00019452,2]
[338457286,1726654252520,-858.85,0.00019452,2]
[338457287,1726654252530,-1147.05,0.00019452,2]
[338457288,1726654252540,-1179.45,0.00019452,2]
[338457289,1726654252550,-925.93,0.00019452,2]
[338457290,1726654252559,-4885.62,0.00019452,2]
[338457291,1726654252570,-500.0,0.00019452,2]
[338457292,1726654252580,-518.13,0.00019452,2]
[338457293,1726654252590,-500.0,0.00019452,2]
[338457294,1726654252601,-500.0,0.00019452,2]
[338457295,1726654252610,-1085.51,0.00019452,2]
[338457296,1726654252620,-500.0,0.00019452,2]
[338457297,1726654252630,-1485.72,0.00019452,2]
[338457298,1726654252640,-500.0,0.00019452,2]
[338457299,1726654252650,-500.0,0.00019452,2]
[338457300,1726654252660,-755.63,0.00019452,2]
[338457301,1726654252671,-500.0,0.00019452,2]
[338457302,1726654252685,-500.0,0.00019452,2]
[338457303,1726654252695,-589.77,0.00019452,2]
[338457304,1726654252707,-785.27,0.00019452,2]
[338457305,1726654252716,-524.58989327,0.00019452,2]
[338457306,1726654252728,-1082.35,0.00019452,2]
[338457307,1726654252738,-500.0,0.00019452,2]
[338457308,1726654252748,-500.0,0.00019452,2]
[338457309,1726654252757,-655.28,0.00019452,2]
[338457310,1726654252767,-3902.89,0.00019452,2]
[338457311,1726654252777,-500.0,0.00019452,2]
[338457312,1726654252787,-1861.06,0.00019452,2]
[338457313,1726654252796,-417.25361727,0.00019452,2]
[338457314,1726654252806,-500.0,0.00019452,2]
[338457315,1726654252816,-250.0,0.00019452,2]
[338457316,1726654252826,-1447.85,0.00019452,2]
[338457317,1726654252838,-500.0,0.00019452,2]
[338457318,1726654252848,-500.0,0.00019452,2]
[338457319,1726654252857,-500.0,0.00019452,2]
[338457320,1726654252867,-500.0,0.00019452,2]
[338457321,1726654252876,-500.0,0.00019452,2]
[338457322,1726654252885,-500.0,0.00019452,2]
[338457323,1726654252895,-500.0,0.00019452,2]
[338457324,1726654252904,-500.0,0.00019452,2]
[338457325,1726654252915,-538.39,0.00019452,2]
[338457326,1726654252924,-1219.41,0.00019452,2]
[338457327,1726654252933,-1546.58,0.00019452,2]
[338457328,1726654252943,-5645.12,0.00019452,2]
[338457329,1726654252952,-1553.59,0.00019452,2]
[338457330,1726654252961,-3094.67,0.00019452,2]
[338457331,1726654252971,-500.0,0.00019452,2]
[338457332,1726654252981,-500.0,0.00019452,2]
[338457333,1726654252990,-500.0,0.00019452,2]
[338457334,1726654253000,-500.0,0.00019452,2]
[338457335,1726654253010,-878.38,0.00019452,2]
[338457336,1726654253019,-500.0,0.00019452,2]
[338457337,1726654253028,-2589.23,0.00019452,2]
[338457338,1726654253037,-500.0,0.00019452,2]
[338457339,1726654253047,-500.0,0.00019452,2]
[338457340,1726654253060,-500.0,0.00019452,2]
[338457341,1726654253076,-1961.8,0.00019452,2]
[338457342,1726654253102,-500.0,0.00019452,2]
[338457343,1726654253112,-1224.24,0.00019452,2]
[338457344,1726654253121,-500.0,0.00019452,2]
[338457345,1726654253131,-734.86,0.00019452,2]
[338457346,1726654253141,-856.01,0.00019452,2]
[338457347,1726654253150,-911.29,0.00019452,2]
[338457348,1726654253159,-1344.85,0.00019452,2]
[338457349,1726654253169,-500.0,0.00019452,2]
[338457350,1726654253179,-500.0,0.00019452,2]
[338457351,1726654253188,-500.0,0.00019452,2]
[338457352,1726654253197,-1236.97,0.00019452,2]
[338457353,1726654253207,-530.46738935,0.00019452,2]
[338457354,1726654253216,-614.97064397,0.00019452,2]
[338457355,1726654253226,-500.0,0.00019452,2]
[338457356,1726654253236,-500.0,0.00019452,2]
[338457357,1726654253246,-1209.0,0.00019452,2]
[338457358,1726654253256,-2290.91,0.00019452,2]
[338457359,1726654253266,-1227.51,0.00019452,2]
[338457360,1726654253275,-500.0,0.00019452,2]
[338457361,1726654253285,-500.0,0.00019452,2]
[338457362,1726654253295,-1424.66,0.00019452,2]
[338457363,1726654253305,-500.0,0.00019452,2]
[338457364,1726654253316,-500.0,0.00019452,2]
[338457365,1726654253327,-500.0,0.00019452,2]
[338457366,1726654253337,-1173.64,0.00019452,2]
[338457367,1726654253346,-673.66,0.00019452,2]
[338457368,1726654253356,-2158.53,0.00019452,2]
[338457369,1726654253365,-698.0,0.00019452,2]
[338457370,1726654253375,-1239.64,0.00019452,2]
[338457371,1726654253386,-500.0,0.00019452,2]
[338457372,1726654253396,-500.0,0.00019452,2]
[338457373,1726654253405,-1233.24,0.00019452,2]
[338457374,1726654253414,-2528.92,0.00019452,2]
[338457375,1726654253423,-500.0,0.00019452,2]
[338457376,1726654253434,-1052.0,0.00019452,2]
[338457377,1726654253443,-4484.86,0.00019452,2]
[338457378,1726654253452,-500.0,0.00019452,2]
[338457379,1726654253463,-3611.4,0.00019452,2]
[338457380,1726654253473,-2548.5,0.00019452,2]
[338457381,1726654253484,-1635.57,0.00019452,2]
[338457382,1726654253494,-252.52289658,0.00019452,2]
[338457383,1726654253506,-500.0,0.00019452,2]
[338457384,1726654253518,-500.0,0.00019452,2]
[338457385,1726654253531,-500.0,0.00019452,2]
[338457386,1726654253541,-655.84,0.00019452,2]
[338457387,1726654253552,-500.0,0.00019452,2]
[338457388,1726654253562,-500.0,0.00019452,2]
[338457389,1726654253574,-721.45,0.00019452,2]
[338457390,1726654253583,-823.25,0.00019452,2]
[338457391,1726654253594,-580.53,0.00019452,2]
[338457392,1726654253603,-1753.09,0.00019452,2]
[338457393,1726654253613,-500.0,0.00019452,2]
[338457394,1726654253623,-12647.46,0.00019452,2]
[338457395,1726654253633,-500.0,0.00019452,2]
[338457396,1726654253642,-1016.91,0.00019452,2]
[338457397,1726654253651,-500.0,0.00019452,2]
[338457398,1726654253660,-500.0,0.00019452,2]
[338457399,1726654253671,-547.86369179,0.00019452,2]
[338457400,1726654253687,-2144.44,0.00019452,2]
[338457401,1726654253698,-1282.13,0.00019452,2]
[338457402,1726654253709,-500.0,0.00019452,2]
[338457403,1726654253719,-500.0,0.00019452,2]
[338457404,1726654253728,-1872.08,0.00019452,2]
[338457405,1726654253738,-684.1,0.00019452,2]
[338457406,1726654253748,-519.35,0.00019452,2]
[338457407,1726654253760,-1959.35,0.00019452,2]
[338457408,1726654253772,-666.72,0.00019452,2]
[338457409,1726654253782,-1290.78,0.00019452,2]
[338457410,1726654253792,-500.0,0.00019452,2]
[338457411,1726654253802,-500.0,0.00019452,2]
[338457412,1726654253811,-500.0,0.00019452,2]
[338457413,1726654253822,-500.0,0.00019452,2]
[338457414,1726654253833,-560.6,0.00019452,2]
[338457415,1726654253844,-756.43,0.00019452,2]
[338457416,1726654253857,-500.0,0.00019452,2]
[338457417,1726654253869,-1019.46,0.00019452,2]
[338457418,1726654253880,-762.5,0.00019452,2]
[338457419,1726654253889,-521.55,0.00019452,2]
[338457420,1726654253899,-691.79,0.00019452,2]
[338457421,1726654253910,-500.0,0.00019452,2]
[338457422,1726654253920,-500.0,0.00019452,2]
[338457423,1726654254055,-779.3,0.00019452,2]
[338457424,1726654254066,-500.0,0.00019452,2]
[338457425,1726654254095,-1301.78,0.00019452,2]
[338457426,1726654254106,-500.0,0.00019452,2]
[338457427,1726654254120,-408.07594544,0.00019452,2]
[338457428,1726654254131,-500.0,0.00019452,2]
[338457429,1726654254141,-500.0,0.00019452,2]
[338457430,1726654254150,-500.0,0.00019452,2]
[338457431,1726654254159,-1344.5,0.00019452,2]
[338457432,1726654254170,-1184.37,0.00019452,2]
[338457433,1726654254181,-500.0,0.00019452,2]
[338457434,1726654254193,-1613.49,0.00019452,2]
[338457435,1726654254203,-779.76,0.00019452,2]
[338457436,1726654254214,-500.0,0.00019452,2]
[338457437,1726654254223,-2301.74,0.00019452,2]
[338457438,1726654254233,-2350.3,0.00019452,2]
[338457439,1726654254244,-500.0,0.00019452,2]
[338457440,1726654254254,-500.0,0.00019452,2]
[338457441,1726654254266,-500.0,0.00019452,2]
[338457442,1726654254276,-500.0,0.00019452,2]
[338457443,1726654254288,-500.0,0.00019452,2]
[338457444,1726654254299,-693.07,0.00019452,2]
[338457445,1726654254309,-1601.5,0.00019452,2]
[338457446,1726654254319,-569.48,0.00019452,2]
[338457447,1726654254328,-595.67,0.00019452,2]
[338457448,1726654254338,-500.0,0.00019452,2]
[338457449,1726654254347,-1207.09,0.00019452,2]
[338457450,1726654254358,-517.57497821,0.00019452,2]
[338457451,1726654254367,-2086.01,0.00019452,2]
[338457452,1726654254378,-1252.64,0.00019452,2]
[338457453,1726654254387,-500.0,0.00019452,2]
[338457454,1726654254397,-500.0,0.00019452,2]
[338457455,1726654254407,-500.0,0.00019452,2]
[338457456,1726654254417,-500.0,0.00019452,2]
[338457457,1726654254427,-3353.74,0.00019452,2]
[338457458,1726654254436,-1004.66,0.00019452,2]
[338457459,1726654254447,-1046.08,0.00019452,2]
[338457460,1726654254457,-1150.67,0.00019452,2]
[338457461,1726654254468,-500.0,0.00019452,2]
[338457462,1726654254479,-500.0,0.00019452,2]
[338457463,1726654254491,-500.0,0.00019452,2]
[338457464,1726654254502,-500.0,0.00019452,2]
[338457465,1726654254511,-500.0,0.00019452,2]
[338457466,1726654254523,-500.0,0.00019452,2]
[338457467,1726654254535,-961.69,0.00019452,2]
[338457468,1726654254546,-500.0,0.00019452,2]
[338457469,1726654254557,-500.0,0.00019452,2]
[338457470,1726654254569,-500.0,0.00019452,2]
[338457471,1726654254580,-2023.44,0.00019452,2]
[338457472,1726654254589,-500.0,0.00019452,2]
[338457473,1726654254599,-500.0,0.00019452,2]
[338457474,1726654254610,-500.0,0.00019452,2]
[338457475,1726654254619,-500.0,0.00019452,2]
[338457476,1726654254628,-2522.26,0.00019452,2]
[338457477,1726654254638,-1351.31,0.00019452,2]
[338457478,1726654254647,-683.38,0.00019452,2]
[338457479,1726654254657,-1525.6,0.00019452,2]
[338457480,1726654254666,-500.0,0.00019452,2]
[338457481,1726654254678,-1523.88,0.00019452,2]
[338457482,1726654254687,-500.0,0.00019452,2]
[338457483,1726654254697,-500.0,0.00019452,2]
[338457484,1726654254707,-500.0,0.00019452,2]
[338457485,1726654254716,-500.0,0.00019452,2]
[338457486,1726654254726,-500.0,0.00019452,2]
[338457487,1726654254735,-774.27,0.00019452,2]
[338457488,1726654254744,-3273.15,0.00019452,2]
[338457489,1726654254752,-1390.71,0.00019452,2]
[338457490,1726654254764,-564.34553091,0.00019452,2]
[338457491,1726654255712,-500.0,0.00019178,2]
[338457492,1726654255731,-500.0,0.00019178,2]
[338457493,1726654255746,-287.06446909,0.00019452,2]
[338457494,1726654255763,-331.01753105,0.00019452,2]
[338457495,1726654255860,-168.98246895,0.00019452,2]
[338457496,1726654255875,-506.91216179,0.00019452,2]
[338457497,1726654255891,-79392.34,0.00019452,2]
[338457498,1726654255906,-500.0,0.00019452,2]
[338457499,1726654255921,-500.0,0.00019452,2]
[338457500,1726654255938,-6651.08,0.00019452,2]
[338457501,1726654255954,-500.0,0.00019452,2]
[338457502,1726654255971,-364.0647594,0.00019452,2]
[338457518,1726655162939,3881.13,0.00014012,2]
[338457565,1726655432996,-218.56588726,0.000166,2]
[338457566,1726655433008,-300.0,0.00016633,2]
[338457567,1726655433019,-300.0,0.00016633,2]
[338457568,1726655433029,-10575.89182962,0.00016634,2]
[338457569,1726655433038,-2144.89244533,0.00016635,2]
[338457570,1726655433048,-1241.72861673,0.00016735,2]
[338457587,1726655438711,-7335.41498825,0.00016735,2]
[338457588,1726655438741,-1892.80713578,0.00016735,2]
[338457589,1726655438763,-14430.04925924,0.00016735,2]
[338457590,1726655438774,-3000.0,0.00016735,2]
[338457591,1726655438784,-250.0,0.00016861,2]
[338457592,1726655438794,-250.0,0.00016907,2]
[338457593,1726655438803,-250.0,0.00016953,2]
[338457594,1726655438815,-250.0,0.00017,2]
[338457595,1726655438825,-250.0,0.00017046,2]
[338457596,1726655438836,-250.0,0.00017092,2]
[338457597,1726655438847,-250.0,0.00017138,2]
[338457598,1726655438857,-250.0,0.00017185,2]
[338457599,1726655438868,-250.0,0.00017231,2]
[338457600,1726655438880,-250.0,0.00017277,2]
[338457601,1726655438891,-250.0,0.00017323,2]
[338457602,1726655438901,-250.0,0.0001737,2]
[338457603,1726655438912,-250.0,0.00017416,2]
[338457604,1726655438922,-500.0,0.00017461,2]
[338457605,1726655438932,-500.0,0.00017461,2]
[338457606,1726655438948,-500.0,0.00017461,2]
[338457607,1726655438958,-554.36421074,0.00017461,2]
[338457608,1726655438968,-500.0,0.00017461,2]
[338457609,1726655438978,-500.0,0.00017461,2]
[338457610,1726655438988,-500.0,0.00017461,2]
[338457611,1726655438998,-500.0,0.00017461,2]
[338457612,1726655439008,-500.0,0.00017461,2]
[338457613,1726655439018,-500.0,0.00017461,2]
[338457614,1726655439029,-500.0,0.00017461,2]
[338457615,1726655439042,-500.0,0.00017461,2]
[338457616,1726655439053,-500.0,0.00017461,2]
[338457617,1726655439063,-500.0,0.00017461,2]
[338457618,1726655439073,-500.0,0.00017461,2]
[338457619,1726655439083,-500.0,0.00017461,2]
[338457620,1726655439093,-500.0,0.00017461,2]
[338457621,1726655439102,-500.0,0.00017461,2]
[338457622,1726655439112,-500.0,0.00017461,2]
[338457623,1726655439121,-500.0,0.00017461,2]
[338457624,1726655439132,-500.0,0.00017461,2]
[338457625,1726655439142,-500.0,0.00017461,2]
[338457626,1726655439156,-500.0,0.00017461,2]
[338457627,1726655439166,-500.0,0.00017461,2]
[338457628,1726655439175,-500.0,0.00017461,2]
[338457629,1726655439187,-594.78281434,0.00017461,2]
[338457630,1726655439197,-500.0,0.00017461,2]
[338457631,1726655439210,-500.0,0.00017461,2]
[338457632,1726655439220,-500.0,0.00017461,2]
[338457633,1726655439233,-500.0,0.00017461,2]
[338457634,1726655439244,-500.0,0.00017461,2]
[338457635,1726655439253,-500.0,0.00017461,2]
[338457636,1726655439264,-500.0,0.00017461,2]
[338457637,1726655439275,-500.0,0.00017461,2]
[338457638,1726655439285,-250.0,0.00017462,2]
[338457639,1726655439295,-250.0,0.00017508,2]
[338457640,1726655439307,-2144.89244533,0.00017532,2]
[338457641,1726655439316,-250.0,0.00017555,2]
[338457642,1726655439326,-250.0,0.00017601,2]
[338457643,1726655439336,-250.0,0.00017647,2]
[338457644,1726655439346,-250.0,0.00017693,2]
[338457645,1726655439356,-250.0,0.00017739,2]
[338457646,1726655439365,-1000.0,0.00018,11]
[338457647,1726655439375,-420.0,0.00018174,2]
[338457648,1726655439384,-353.0,0.00018296,2]
[338457649,1726655439393,-2144.89244533,0.00018429,2]
[338457650,1726655439403,-840.6699284,0.00018521,2]
[338457651,1726655439412,-696.2,0.0001898,3]
[338457652,1726655439421,-500.0,0.00018989,2]
[338457653,1726655439431,-500.0,0.00018989,2]
[338457654,1726655439444,-500.0,0.00018989,2]
[338457655,1726655439453,-500.0,0.00018989,2]
[338457656,1726655439462,-439.10665374,0.00018989,2]
[338457657,1726655439472,-159.09318474,0.00018989,2]
[338457658,1726655439481,-500.0,0.00018989,2]
[338457659,1726655439490,-500.0,0.00018989,2]
[338457660,1726655439499,-500.0,0.00018989,2]
[338457661,1726655439510,-500.0,0.00018989,2]
[338457662,1726655439521,-500.0,0.00018989,2]
[338457663,1726655439531,-500.0,0.00018989,2]
[338457664,1726655439541,-400.74902246,0.00018989,2]
[338457665,1726655439550,-500.0,0.00018989,2]
[338457666,1726655439560,-558.38878916,0.00018989,2]
[338457667,1726655439570,-155.63165422,0.00018989,2]
[338457668,1726655439579,-500.0,0.00018989,2]
[338457669,1726655439588,-650.0,0.00018989,2]
[338457670,1726655439598,-500.0,0.00018989,2]
[338457671,1726655439608,-500.0,0.00018989,2]
[338457672,1726655439617,-500.0,0.00018989,2]
[338457673,1726655439627,-500.0,0.00018989,2]
[338457674,1726655439636,-283186.312507,0.0001899,3]
[338457675,1726655439645,-49876.3264778,0.0001899,3]
[338457676,1726655439655,-136474.11535208,0.00019,2]
[338457698,1726655440699,-43947.28182536,0.00019,2]
[338457699,1726655440711,-1000.0,0.00019,19]
[338457700,1726655440722,-1230.06580488,0.00019062,2]
[338457701,1726655440733,-151.0,0.0001907,2]
[338457702,1726655440744,-167.683118,0.0001907,2]
[338457703,1726655440755,-70796.5781268,0.00019138,3]
[338457704,1726655440766,-12469.0816195,0.00019138,3]
[338457705,1726655440776,-24938.1632389,0.00019148,3]
[338457706,1726655440786,-151.0,0.00019148,2]
[338457707,1726655440797,-151.0,0.00019148,2]
[338457708,1726655440808,-167.683118,0.00019148,2]
[338457709,1726655440820,-167.683118,0.00019148,2]
[338457710,1726655440830,-37407.2448584,0.00019148,3]
[338457711,1726655440841,-2977.13514684,0.0001915,2]
[338457712,1726655440852,-12469.0816195,0.00019152,3]
[338457713,1726655440862,-154.506811,0.00019158,2]
[338457714,1726655440873,-151.0,0.00019158,2]
[338457715,1726655440884,-205.875609,0.00019158,2]
[338457716,1726655440895,-205.875609,0.00019158,2]
[338457717,1726655440905,-24938.1632389,0.00019158,3]
[338457718,1726655440916,-151.0,0.00019168,2]
[338457719,1726655440927,-167.683118,0.00019168,2]
[338457720,1726655440939,-154.795383,0.00019168,2]
[338457721,1726655440950,-151.0,0.00019168,2]
[338457722,1726655440960,-201.554462,0.00019168,2]
[338457723,1726655440971,-201.554462,0.00019168,2]
[338457724,1726655440983,-151.0,0.00019168,2]
[338457725,1726655440994,-151.0,0.00019168,2]
[338457726,1726655441004,-205.875145,0.00019168,2]
[338457727,1726655441015,-151.0,0.00019168,2]
[338457728,1726655441026,-205.875145,0.00019168,2]
[338457729,1726655441036,-151.0,0.00019168,2]
[338457730,1726655441046,-87283.5713362,0.00019168,3]
[338457731,1726655441058,-500.0,0.00019173,2]
[338457732,1726655441069,-513.32263156,0.00019173,2]
[338457733,1726655441079,-500.4431137,0.00019173,2]
[338457734,1726655441090,-254.69698023,0.00019173,2]
[338457735,1726655441100,-500.49163467,0.00019173,2]
[338457736,1726655441111,-500.0,0.00019173,2]
[338457737,1726655441121,-500.35776297,0.00019173,2]
[338457738,1726655441132,-500.37104256,0.00019173,2]
[338457739,1726655441143,-500.0,0.00019173,2]
[338457740,1726655441157,-200.91528279,0.00019173,2]
[338457741,1726655441167,-500.0,0.00019173,2]
[338457742,1726655441178,-522.25634702,0.00019173,2]
[338457743,1726655441192,-500.50555096,0.00019173,2]
[338457744,1726655441202,-500.0,0.00019173,2]
[338457745,1726655441214,-500.0,0.00019173,2]
[338457746,1726655441225,-500.0,0.00019173,2]
[338457747,1726655441236,-500.0,0.00019173,2]
[338457748,1726655441247,-500.78291911,0.00019173,2]
[338457749,1726655441257,-500.0,0.00019173,2]
[338457750,1726655441266,-500.99242898,0.00019173,2]
[338457751,1726655441276,-500.0,0.00019173,2]
[338457752,1726655441287,-501.02580175,0.00019173,2]
[338457753,1726655441298,-500.16862454,0.00019173,2]
[338457754,1726655441307,-151.0,0.00019173,2]
[338457755,1726655441316,-205.875609,0.00019173,2]
[338457756,1726655441327,-205.875609,0.00019173,2]
[338457757,1726655441337,-1441.30764285,0.00019177,2]
[338457758,1726655441347,-5994.72316835,0.00019178,5]
[338457759,1726655441356,-151.0,0.00019178,2]
[338457760,1726655441366,-151.0,0.00019178,2]
[338457761,1726655441375,-151.0,0.00019178,2]
[338457762,1726655441384,-194.975046,0.00019178,2]
[338457763,1726655441394,-167.683118,0.00019178,2]
[338457764,1726655441403,-167.683118,0.00019178,2]
[338457765,1726655441413,-167.683118,0.00019178,2]
[338457766,1726655441423,-167.683118,0.00019178,2]
[338457767,1726655441433,-167.683118,0.00019178,2]
[338457768,1726655441444,-167.683118,0.00019178,2]
[338457769,1726655441454,-167.683118,0.00019178,2]
[338457770,1726655441463,-167.683118,0.00019178,2]
[338457771,1726655441472,-167.683118,0.00019178,2]
[338457772,1726655441482,-167.683118,0.00019178,2]
[338457773,1726655441491,-167.683111,0.00019178,2]
[338457774,1726655441500,-500.0,0.00019178,2]
[338457775,1726655441510,-151.0,0.00019178,2]
[338457776,1726655441519,-151.0,0.00019178,2]
[338457777,1726655441529,-500.0,0.00019178,2]
[338457778,1726655441538,-500.0,0.00019178,2]
[338457779,1726655441548,-779.3,0.00019178,2]
[338457780,1726655441558,-151.0,0.00019178,2]
[338457781,1726655441568,-500.0,0.00019178,2]
[338457782,1726655441765,-500.0,0.00019178,2]
[338457783,1726655441777,-500.0,0.00019178,2]
[338457784,1726655441787,-500.0,0.00019178,2]
[338457785,1726655441798,-500.0,0.00019178,2]
[338457786,1726655441808,-500.0,0.00019178,2]
[338457787,1726655441819,-500.0,0.00019178,2]
[338457788,1726655441829,-500.0,0.00019178,2]
[338457789,1726655441839,-500.0,0.00019178,2]
[338457790,1726655441850,-500.0,0.00019178,2]
[338457791,1726655441862,-500.0,0.00019178,2]
[338457792,1726655441873,-151.0,0.00019178,2]
[338457793,1726655441883,-151.0,0.00019178,2]
[338457794,1726655441894,-500.0,0.00019178,2]
[338457795,1726655441903,-500.0,0.00019178,2]